bitfinex/quotes_SOLUSD_20241122
["timestamp","ask_amount","ask_price","bid_price","bid_amount"]
[1732295529328,19.24274013,254.39,254.23,2.5]
[1732295529530,15.6667,254.4,254.23,3.0895968]
[1732295529751,19.24274013,254.43,254.26,6.4108]
[1732295529971,19.24274013,254.43,254.27,2.5]
[1732295530263,19.24274013,254.47,254.3,2.5]
[1732295530430,19.24274013,254.49,254.32,2.5]
[1732295530628,19.24274013,254.47,254.3,22.33160586]
[1732295530848,19.24274013,254.47,254.3,17.5254]
[1732295531061,19.24274013,254.49,254.32,2.5]
[1732295531631,20.0,254.48,254.32,2.5]
[1732295532057,20.0,254.5,254.32,2.5]
[1732295532250,19.24274013,254.51,254.33,14.55468372]
[1732295532444,19.24274013,254.55,254.33,12.05468372]
[1732295532645,15.061,254.6,254.33,12.05468372]
[1732295532646,15.061,254.6,254.34,2.5]
[1732295532943,19.24274013,254.5,254.33,11.46530586]
[1732295533350,19.24274013,254.5,254.33,6.6591]
[1732295533549,19.24274013,254.52,254.33,7.24848068]
[1732295533859,19.24274013,254.5,254.33,6.6591]
[1732295534056,23.776884,254.49,254.33,6.6591]
[1732295534358,23.776884,254.47,254.33,9.1591]
[1732295534654,23.776884,254.43,254.33,6.6591]
[1732295534868,20.0,254.38,254.33,6.6591]
[1732295535034,23.776884,254.35,254.27,6.036]
[1732295535350,23.776884,254.33,254.27,6.036]
[1732295535553,23.776884,254.35,254.27,6.036]
[1732295535754,23.776884,254.33,254.27,6.036]
[1732295536135,20.0,254.41,254.28,4.80620586]
[1732295536530,23.776884,254.38,254.29,0.58952588]
[1732295536742,20.0,254.37,254.29,0.58952588]
[1732295537639,20.0,254.43,254.41,114.4]
[1732295537857,19.24274013,254.46,254.29,2.5]
[1732295538042,19.24274013,254.44,254.27,6.036]
[1732295538354,19.24274013,254.44,254.28,0.58949516]
[1732295538930,19.24274013,254.46,254.3,2.5]
[1732295539236,19.24274013,254.46,254.31,0.58939942]
[1732295540108,20.0,254.45,254.31,0.58939942]
[1732295540510,20.0,254.41,254.31,0.58939942]
[1732295541227,15.982384,254.6,254.33,16.0649]
[1732295541228,20.0,254.51,254.33,16.0649]
[1732295541728,39.24274013,254.52,254.34,0.58933364]
[1732295541921,20.0,254.52,254.34,0.58933364]
[1732295542224,20.0,254.49,254.34,0.58933364]
[1732295542605,20.0,254.45,254.34,3.08933364]
[1732295542929,19.24274013,254.54,254.35,6.3297]
[1732295543105,19.24274013,254.54,254.36,0.5892629]
[1732295543929,19.24274013,254.52,254.36,0.5892629]
[1732295544111,43.776884,254.51,254.36,0.5892629]
[1732295544807,19.24274013,254.48,254.35,6.3297]
[1732295545011,20.0,254.44,254.35,6.3297]
[1732295545614,20.0,254.46,254.35,6.3297]
[1732295546026,20.0,254.44,254.35,6.3297]
[1732295547328,23.776884,254.48,254.35,11.13590586]
[1732295547518,20.0,254.47,254.35,11.13590586]
[1732295548029,20.0,254.47,254.35,6.3297]
[1732295550346,23.776884,254.46,254.35,6.3297]
[1732295551147,20.0,254.45,254.35,6.3297]
[1732295551435,20.0,254.47,254.35,6.3297]
[1732295551436,23.776884,254.44,254.35,6.3297]
[1732295552624,20.0,254.45,254.35,6.3297]
[1732295552827,23.776884,254.44,254.35,6.3297]
[1732295556642,23.776884,254.4,254.35,6.3297]
[1732295559827,23.776884,254.35,254.22,22.0349]
[1732295560138,23.776884,254.35,254.23,4.80620586]
[1732295561651,23.776884,254.35,254.24,2.5]
[1732295561822,23.776884,254.35,254.25,11.22420586]
[1732295562024,20.0,254.42,254.25,11.22420586]
[1732295562541,20.0,254.42,254.26,2.5]
[1732295562751,12.01652944,254.43,254.25,11.81368574]
[1732295563042,20.0,254.4,254.27,4.80620586]
[1732295563544,20.0,254.4,254.22,22.0349]
[1732295563840,20.0,254.4,254.22,26.84110586]
[1732295564042,23.776884,254.36,254.22,26.84110586]
[1732295564819,23.776884,254.34,254.22,26.84110586]
[1732295568033,23.776884,254.34,254.23,5.04633752]
[1732295568645,23.776884,254.34,254.24,0.58966624]
[1732295568825,12.01652944,254.43,254.25,5.04633752]
[1732295569557,12.01652944,254.45,254.25,5.04633752]
[1732295570249,12.01652944,254.45,254.26,2.5]
[1732295570445,12.01652944,254.47,254.28,6.3233]
[1732295570636,12.01652944,254.47,254.3,16.3425]
[1732295570836,12.01652944,254.53,254.31,3.08943096]
[1732295571136,2.5,254.63,254.31,3.08943096]
[1732295571137,12.01652944,254.54,254.33,2.5]
[1732295571437,12.01652944,254.6,254.39,6.3233]
[1732295571648,12.01652944,254.62,254.4,8.13548011]
[1732295571955,27.70935044,254.64,254.43,2.5]
[1732295572244,12.01652944,254.66,254.47,2.5]
[1732295572553,5.63548,254.65,254.48,5.63530474]
[1732295572929,12.01652944,254.59,254.45,21.0747]
[1732295573129,12.01652944,254.56,254.45,21.0747]
[1732295574328,23.776884,254.55,254.45,21.0747]
[1732295574527,12.01652944,254.54,254.45,21.0747]
[1732295574833,23.776884,254.55,254.45,21.0747]
[1732295575448,12.016529,254.6,254.45,21.0747]
[1732295575654,12.016529,254.6,254.46,5.04633752]
[1732295576143,12.01652944,254.67,254.45,26.12103752]
[1732295576356,15.683389,254.7,254.47,2.5]
[1732295576544,15.683389,254.7,254.49,11.0877]
[1732295576846,12.01652944,254.74,254.5,5.63521577]
[1732295577029,15.681375,254.73,254.5,5.63521577]
[1732295577753,20.0,254.72,254.51,15.3963]
[1732295578053,12.01652944,254.74,254.52,5.63519528]
[1732295578350,12.01652944,254.72,254.52,5.04633752]
[1732295579149,20.0,254.73,254.52,5.04633752]
[1732295579150,23.776884,254.73,254.52,5.04633752]
[1732295579744,12.01652944,254.78,254.55,2.5]
[1732295580036,15.67907,254.77,254.56,0.58877259]
[1732295580540,12.01652944,254.82,254.58,5.0]
[1732295580729,12.01652944,254.82,254.59,5.63498901]
[1732295580957,9.1615,254.81,254.59,5.63498901]
[1732295581456,12.01652944,254.84,254.61,3.918]
[1732295581632,12.01652944,254.84,254.61,6.418]
[1732295581834,12.01652944,254.82,254.61,6.418]
[1732295582327,12.01652944,254.78,254.62,5.04633752]
[1732295582525,12.01652944,254.78,254.6,6.5199]
[1732295582952,15.0298,254.83,254.6,6.5199]
[1732295582953,19.18345636,254.79,254.6,6.5199]
[1732295583163,42.96034036,254.79,254.6,6.5199]
[1732295583328,19.18345636,254.75,254.6,6.5199]
[1732295583656,23.776884,254.74,254.6,6.5199]
[1732295584027,19.18345636,254.77,254.6,6.5199]
[1732295584028,23.776884,254.76,254.6,11.56623752]
[1732295584345,15.0298,254.83,254.6,11.56623752]
[1732295584346,23.776884,254.78,254.61,5.04633752]
[1732295584736,23.776884,254.78,254.6,6.5199]
[1732295585352,23.776884,254.78,254.61,5.04633752]
[1732295585558,23.776884,254.8,254.61,5.04633752]
[1732295585858,19.18345636,254.85,254.61,5.63501175]
[1732295586043,6.5199,254.84,254.61,5.63501175]
[1732295586645,6.5199,254.84,254.62,15.0119]
[1732295586850,6.5199,254.84,254.63,12.08823249]
[1732295587362,42.96034036,254.83,254.63,11.49963752]
[1732295587559,6.5199,254.84,254.63,11.49963752]
[1732295587560,23.776884,254.8,254.63,11.49963752]
[1732295587757,23.776884,254.8,254.63,6.4533]
[1732295587954,23.776884,254.78,254.63,6.4533]
[1732295588641,23.776884,254.76,254.63,6.4533]
[1732295589248,23.776884,254.76,254.64,5.04633752]
[1732295589655,23.776884,254.76,254.63,6.4533]
[1732295589960,6.5199,254.84,254.63,6.4533]
[1732295589961,19.18345636,254.77,254.63,6.4533]
[1732295590164,23.776884,254.74,254.63,6.4533]
[1732295591348,19.18345636,254.73,254.63,6.4533]
[1732295591550,23.776884,254.7,254.57,6.5668]
[1732295592062,23.776884,254.7,254.58,5.04633752]
[1732295592450,19.18345636,254.75,254.58,5.04633752]
[1732295592764,23.776884,254.74,254.58,5.04633752]
[1732295592962,19.18345636,254.79,254.58,5.04633752]
[1732295593140,19.18345636,254.79,254.58,5.63515989]
[1732295593561,19.18345636,254.79,254.59,2.5]
[1732295593861,19.18345636,254.79,254.6,5.04633752]
[1732295594170,19.18345636,254.83,254.61,22.7206]
[1732295594347,19.18345636,254.83,254.62,5.04633752]
[1732295595147,19.18345636,254.81,254.62,5.04633752]
[1732295595758,23.776884,254.8,254.63,3.918]
[1732295595958,23.776884,254.8,254.62,5.04633752]
[1732295596169,23.776884,254.8,254.62,8.96433752]
[1732295596950,23.776884,254.82,254.62,8.96433752]
[1732295598374,23.776884,254.8,254.62,8.96433752]
[1732295599165,19.18345636,254.79,254.62,8.96433752]
[1732295599367,23.776884,254.78,254.62,3.918]
[1732295599553,23.776884,254.76,254.61,22.7206]
[1732295601269,19.18345636,254.75,254.61,22.7206]
[1732295601467,23.776884,254.74,254.61,22.7206]
[1732295601871,23.776884,254.76,254.61,27.76693752]
[1732295602050,23.776884,254.78,254.62,5.04633752]
[1732295602671,19.18345636,254.77,254.62,5.04633752]
[1732295603061,19.18345636,254.75,254.62,5.04633752]
[1732295603264,23.776884,254.7,254.61,22.7206]
[1732295604573,19.18345636,254.67,254.55,6.4965]
[1732295604872,15.1631,254.75,254.55,6.4965]
[1732295604873,23.776884,254.64,254.55,6.4965]
[1732295605100,12.00192934,254.63,254.55,6.4965]
[1732295605381,23.776884,254.62,254.55,6.4965]
[1732295606062,23.776884,254.62,254.35,83.5]
[1732295606063,23.776884,254.55,254.46,6.0329]
[1732295606772,23.776884,254.57,254.46,6.0329]
[1732295606975,23.776884,254.57,254.47,5.04633752]
[1732295607358,23.776884,254.59,254.47,5.04633752]
[1732295607779,6.4236,254.73,254.47,5.04633752]
[1732295607780,12.00192934,254.67,254.47,5.04633752]
[1732295608077,12.00192934,254.67,254.48,3.918]
[1732295608280,12.00192934,254.67,254.5,3.918]
[1732295608572,12.00192934,254.67,254.46,6.6219179]
[1732295608573,12.00192934,254.67,254.51,19.7453]
[1732295608783,12.00192934,254.69,254.51,24.79163752]
[1732295609259,23.776884,254.68,254.51,24.79163752]
[1732295610376,23.776884,254.62,254.51,15.8273]
[1732295610763,23.776884,254.64,254.51,15.8273]
[1732295612562,23.776884,254.66,254.51,15.8273]
[1732295612967,23.776884,254.68,254.51,15.8273]
[1732295613192,23.776884,254.68,254.52,5.04633752]
[1732295613378,12.00192934,254.72,254.53,6.3295]
[1732295613781,12.00192934,254.72,254.54,5.04633752]
[1732295614494,12.00192934,254.7,254.53,6.3295]
[1732295615377,23.776884,254.69,254.53,6.3295]
[1732295615981,23.776884,254.71,254.53,6.3295]
[1732295617482,23.776884,254.73,254.53,6.3295]
[1732295617683,12.00192934,254.72,254.53,6.3295]
[1732295618194,23.776884,254.71,254.53,6.3295]
[1732295618391,23.776884,254.73,254.54,5.04633752]
[1732295619690,23.776884,254.73,254.53,6.3295]
[1732295620392,12.00192934,254.72,254.53,6.3295]
[1732295620599,23.776884,254.71,254.53,6.3295]
[1732295620778,23.776884,254.71,254.54,3.918]
[1732295621291,12.00192934,254.7,254.54,3.918]
[1732295621480,23.776884,254.69,254.54,3.918]
[1732295623202,6.3479,254.79,254.56,3.918]
[1732295623203,23.776884,254.71,254.56,3.918]
[1732295623489,12.00192934,254.73,254.56,3.918]
[1732295623692,12.00192934,254.73,254.53,6.3295]
[1732295624384,12.00192934,254.73,254.54,3.918]
[1732295624692,23.776884,254.72,254.54,3.918]
[1732295626997,23.776884,254.7,254.54,3.918]
[1732295627199,12.00192934,254.69,254.53,6.3295]
[1732295627487,23.776884,254.68,254.54,5.04633752]
[1732295628081,23.776884,254.7,254.54,5.04633752]
[1732295630189,23.776884,254.7,254.53,6.3295]
[1732295630782,23.776884,254.7,254.54,3.918]
[1732295631584,12.00192934,254.75,254.54,5.04633752]
[1732295631889,12.00192934,254.75,254.56,15.5567]
[1732295632087,12.00192934,254.75,254.57,3.918]
[1732295633102,23.776884,254.74,254.57,3.918]
[1732295633995,23.776884,254.72,254.56,15.5567]
[1732295634201,12.00192934,254.71,254.56,15.5567]
[1732295634385,23.776884,254.7,254.56,15.5567]
[1732295635199,23.776884,254.68,254.56,15.5567]
[1732295636197,35.77881334,254.68,254.56,15.5567]
[1732295636796,12.00192934,254.67,254.56,15.5567]
[1732295636998,23.776884,254.66,254.56,15.5567]
[1732295637189,23.776884,254.59,254.53,6.3295]
[1732295640388,23.776884,254.55,254.49,16.5004]
[1732295640794,23.776884,254.57,254.49,16.5004]
[1732295640977,23.776884,254.57,254.49,21.54673752]
[1732295641481,23.776884,254.57,254.49,16.5004]
[1732295642009,23.776884,254.53,254.49,16.5004]
[1732295642307,23.776884,254.55,254.49,16.5004]
[1732295643580,12.00192934,254.56,254.5,23.776884]
[1732295643811,12.00192934,254.54,254.45,6.3006]
[1732295644009,12.00192934,254.52,254.45,6.3006]
[1732295644506,12.00192934,254.5,254.45,6.3006]
[1732295644687,12.00192934,254.48,254.39,6.417]
[1732295646106,12.00192934,254.46,254.39,6.417]
[1732295646416,12.00192934,254.44,254.37,16.4675]
[1732295646704,12.00192934,254.54,254.33,11.18783752]
[1732295646705,12.00192934,254.4,254.33,6.1415]
[1732295647004,2.5,254.52,254.34,5.04633752]
[1732295647005,12.00192934,254.42,254.34,5.04633752]
[1732295647183,12.00192934,254.42,254.33,6.1415]
[1732295647987,12.00192934,254.42,254.34,23.776884]
[1732295648387,12.00192934,254.44,254.34,23.776884]
[1732295649198,12.00192934,254.42,254.34,23.776884]
[1732295649398,12.00192934,254.42,254.32,23.776884]
[1732295649709,12.00192934,254.4,254.3,5.04633752]
[1732295650210,12.00192934,254.38,254.3,5.04633752]
[1732295650708,12.00192934,254.38,254.26,6.1793]
[1732295650709,15.700701,254.37,254.26,6.1793]
[1732295651709,15.700701,254.37,254.27,23.776884]
[1732295652479,15.700701,254.37,254.29,23.776884]
[1732295652683,15.9449,254.45,254.3,4.76861424]
[1732295652878,15.9449,254.45,254.31,23.776884]
[1732295653093,15.69733,254.43,254.31,23.776884]
[1732295654684,12.00192934,254.4,254.31,23.776884]
[1732295655812,12.00192934,254.38,254.26,6.1793]
[1732295656112,15.69733,254.43,254.26,6.1793]
[1732295656113,12.00192934,254.36,254.26,6.1793]
[1732295656709,12.00192934,254.38,254.26,6.1793]
[1732295656998,12.00192934,254.4,254.27,23.776884]
[1732295657398,12.00192934,254.4,254.27,28.54549824]
[1732295658490,12.00192934,254.38,254.27,28.54549824]
[1732295658701,12.00192934,254.38,254.27,23.776884]
[1732295659692,12.00192934,254.4,254.27,23.776884]
[1732295660921,12.00192934,254.4,254.29,23.776884]
[1732295661129,12.00192934,254.4,254.27,23.776884]
[1732295664023,12.00192934,254.4,254.28,4.76861424]
[1732295664218,12.00192934,254.4,254.29,23.776884]
[1732295664922,12.00192934,254.38,254.3,23.776884]
[1732295666030,12.00192934,254.4,254.3,23.776884]
[1732295669811,12.00192934,254.38,254.3,23.776884]
[1732295670141,12.00192934,254.36,254.3,23.776884]
[1732295670929,12.00192934,254.32,254.23,4.76861424]
[1732295671128,12.00192934,254.29,254.19,21.7587]
[1732295671638,12.00192934,254.27,254.19,21.7587]
[1732295672433,137.3,254.4,254.19,21.7587]
[1732295672434,12.00192934,254.29,254.19,21.7587]
[1732295673110,12.00192934,254.29,254.2,4.76861424]
[1732295673532,12.00192934,254.29,254.21,23.776884]
[1732295676734,12.00192934,254.29,254.2,23.776884]
[1732295679034,15.706366,254.28,254.2,23.776884]
[1732295681030,15.706366,254.28,254.22,23.776884]
[1732295681229,15.706366,254.28,254.2,23.776884]
[1732295681531,15.706366,254.28,254.2,28.54549824]
[1732295681731,15.706366,254.28,254.21,4.76861424]
[1732295682232,15.706366,254.28,254.22,23.776884]
[1732295682536,15.706366,254.28,254.22,4.76861424]
[1732295682714,15.706366,254.28,254.23,23.776884]
[1732295683944,15.706366,254.28,254.25,23.776884]
[1732295684117,15.0408,254.41,254.26,4.76861424]
[1732295684318,12.00192934,254.36,254.27,23.776884]
[1732295684515,15.703106,254.31,254.28,4.76861424]
[1732295684744,15.703106,254.31,254.29,23.776884]
[1732295686639,12.00192934,254.36,254.29,28.54549824]
[1732295686839,27.70401034,254.36,254.29,28.54549824]
[1732295687024,15.702081,254.36,254.29,28.54549824]
[1732295687220,15.702081,254.36,254.31,23.776884]
[1732295687539,15.702081,254.36,254.31,28.54549824]
[1732295688213,27.70401034,254.36,254.31,23.776884]
[1732295688937,15.702081,254.36,254.31,23.776884]
[1732295689516,15.702081,254.36,254.32,6.5762]
[1732295689734,27.63552934,254.49,254.33,23.776884]
[1732295689934,15.695359,254.44,254.35,23.776884]
[1732295690242,15.695359,254.44,254.37,23.776884]
[1732295690741,12.00192934,254.47,254.37,23.776884]
[1732295691035,15.694772,254.46,254.37,23.776884]
[1732295693935,12.00192934,254.42,254.32,6.5762]
[1732295694238,12.00192934,254.4,254.26,22.777]
[1732295694545,20.0,254.41,254.26,22.777]
[1732295694838,12.00192934,254.4,254.27,4.76861424]
[1732295695434,12.00192934,254.42,254.28,23.776884]
[1732295695641,12.00192934,254.44,254.3,23.776884]
[1732295696234,15.902,254.45,254.3,23.776884]
[1732295696541,12.00192934,254.43,254.3,23.776884]
[1732295697049,12.00192934,254.43,254.31,4.76861424]
[1732295697619,12.00192934,254.43,254.32,23.776884]
[1732295698031,15.902,254.45,254.32,23.776884]
[1732295698229,12.00192934,254.44,254.32,23.776884]
[1732295699950,15.694772,254.46,254.34,23.776884]
[1732295700160,15.694772,254.46,254.36,23.776884]
[1732295700466,15.694772,254.46,254.37,4.76861424]
[1732295700786,15.694772,254.46,254.38,23.776884]
[1732295701764,15.694772,254.46,254.38,38.917084]
[1732295701984,12.00192934,254.54,254.4,23.776884]
[1732295702146,15.691287,254.52,254.4,23.776884]
[1732295702371,15.691287,254.52,254.41,4.76861424]
[1732295702560,15.691287,254.52,254.42,23.776884]
[1732295703172,12.00192934,254.58,254.43,4.76861424]
[1732295703472,15.689966,254.55,254.46,23.776884]
[1732295703778,12.00192934,254.64,254.48,23.776884]
[1732295704359,15.687449,254.65,254.5,23.776884]
[1732295704559,15.687449,254.65,254.51,4.76861424]
[1732295704758,15.687449,254.65,254.52,23.776884]
[1732295705071,15.687449,254.65,254.54,23.776884]
[1732295705485,28.49052934,254.74,254.56,23.776884]
[1732295705656,15.680426,254.71,254.58,16.6518]
[1732295706061,15.680426,254.71,254.59,23.776884]
[1732295706856,15.680426,254.71,254.59,28.54549824]
[1732295707360,15.680426,254.71,254.59,23.776884]
[1732295707779,15.680426,254.71,254.6,4.76861424]
[1732295707950,15.680426,254.71,254.61,23.776884]
[1732295708156,15.680426,254.71,254.62,11.11521424]
[1732295708359,15.680426,254.71,254.63,23.776884]
[1732295708558,12.00192934,254.81,254.63,23.776884]
[1732295709362,152.6995,254.87,254.63,23.776884]
[1732295709363,12.00192934,254.83,254.63,23.776884]
[1732295709860,12.00192934,254.81,254.63,23.776884]
[1732295710061,12.00192934,254.81,254.65,23.776884]
[1732295710279,12.00192934,254.75,254.64,4.76861424]
[1732295710504,12.00192934,254.75,254.62,6.3466]
[1732295711169,12.00192934,254.71,254.62,6.3466]
[1732295711373,12.00192934,254.73,254.62,6.3466]
[1732295711575,12.00192934,254.75,254.62,6.3466]
[1732295712080,12.00192934,254.79,254.63,4.76861424]
[1732295712282,12.00192934,254.83,254.65,3.918]
[1732295712477,12.00192934,254.83,254.67,23.776884]
[1732295712791,12.00192934,254.83,254.67,28.54549824]
[1732295713586,12.00192934,254.85,254.67,28.54549824]
[1732295714873,12.00192934,254.83,254.67,23.776884]
[1732295715201,12.00192934,254.79,254.67,23.776884]
[1732295715479,12.00192934,254.77,254.63,3.43542794]
[1732295715683,12.00192934,254.79,254.62,10.2646]
[1732295715858,12.00192934,254.79,254.62,6.3466]
[1732295716563,12.00192934,254.79,254.63,23.776884]
[1732295718133,12.00192934,254.77,254.63,23.776884]
[1732295718466,12.00192934,254.73,254.62,6.3466]
[1732295719270,12.00192934,254.79,254.63,4.76861424]
[1732295719480,12.00192934,254.77,254.64,23.776884]
[1732295719771,12.00192934,254.79,254.64,28.54549824]
[1732295721881,137.3,254.84,254.66,23.776884]
[1732295721882,12.00192934,254.83,254.66,23.776884]
[1732295722095,12.00192934,254.83,254.68,23.776884]
[1732295722674,12.00192934,254.81,254.68,23.776884]
[1732295722877,12.00192934,254.79,254.66,23.776884]
[1732295723171,12.00192934,254.81,254.66,23.776884]
[1732295723382,12.00192934,254.83,254.66,28.54549824]
[1732295723602,12.00192934,254.81,254.68,23.776884]
[1732295725811,12.00192934,254.83,254.68,23.776884]
[1732295727471,12.00192934,254.81,254.68,23.776884]
[1732295727668,12.00192934,254.77,254.65,16.3202]
[1732295728190,12.00192934,254.75,254.65,16.3202]
[1732295728391,12.00192934,254.73,254.65,16.3202]
[1732295729081,12.00192934,254.69,254.62,6.3466]
[1732295729793,12.00192934,254.71,254.62,6.3466]
[1732295730192,12.00192934,254.73,254.63,4.76861424]
[1732295730384,12.00192934,254.75,254.63,4.76861424]
[1732295731364,12.00192934,254.75,254.64,23.776884]
[1732295732169,12.00192934,254.73,254.64,23.776884]
[1732295732365,12.00192934,254.71,254.63,23.776884]
[1732295732685,12.00192934,254.69,254.62,6.3466]
[1732295733060,137.3,254.76,254.62,6.3466]
[1732295733245,137.3,254.76,254.63,4.76861424]
[1732295733246,137.3,254.75,254.63,4.76861424]
[1732295733751,137.3,254.75,254.64,23.776884]
[1732295734060,137.3,254.75,254.66,23.776884]
[1732295734266,137.3,254.75,254.66,28.54549824]
[1732295734868,12.00192934,254.74,254.66,28.54549824]
[1732295735567,137.3,254.75,254.66,28.54549824]
[1732295735742,12.00192934,254.78,254.67,4.76861424]
[1732295735945,12.00192934,254.8,254.68,23.776884]
[1732295736160,12.00192934,254.82,254.7,23.776884]
[1732295736360,12.00192934,254.82,254.71,4.76861424]
[1732295736547,12.00192934,254.82,254.72,23.776884]
[1732295737065,149.30192934,254.86,254.73,4.76861424]
[1732295737257,12.00192934,254.86,254.74,30.331684]
[1732295737455,12.00192934,254.88,254.76,23.776884]
[1732295737761,137.3,254.91,254.78,23.776884]
[1732295737971,137.3,254.91,254.8,23.776884]
[1732295738264,15.668603,254.95,254.8,28.54549824]
[1732295738579,12.00192934,254.96,254.82,23.776884]
[1732295738863,12.00192934,254.92,254.82,28.54549824]
[1732295739457,12.00192934,254.88,254.82,4.76861424]
[1732295739657,12.00192934,254.88,254.76,23.776884]
[1732295740766,19.16927594,254.88,254.76,23.776884]
[1732295741447,19.16927594,254.88,254.76,28.54549824]
[1732295741648,19.16927594,254.93,254.78,23.776884]
[1732295741966,156.46927594,254.95,254.8,23.776884]
[1732295742268,137.3,254.95,254.82,23.776884]
[1732295742448,19.16927594,254.97,254.83,4.76861424]
[1732295742747,156.46927594,254.97,254.84,23.776884]
[1732295743068,19.16927594,254.95,254.84,23.776884]
[1732295745669,19.16927594,254.97,254.84,23.776884]
[1732295746665,19.16927594,254.97,254.86,23.776884]
[1732295747256,137.3,254.98,254.86,23.776884]
[1732295747581,137.3,255.03,254.88,23.776884]
[1732295747868,19.16927594,255.05,254.88,23.776884]
[1732295747869,137.3,255.02,254.9,23.776884]
[1732295748072,152.964961,255.02,254.9,23.776884]
[1732295748249,137.3,255.02,254.9,23.776884]
[1732295748753,34.83089994,255.07,254.9,23.776884]
[1732295748946,19.16927594,255.07,254.92,23.776884]
[1732295749674,17.16927594,255.07,254.92,23.776884]
[1732295749869,172.12990194,255.09,254.93,4.76861424]
[1732295750062,137.3,255.08,254.96,23.776884]
[1732295750479,156.46927594,255.08,254.96,28.54549824]
[1732295750769,156.46927594,255.08,254.96,23.776884]
[1732295753074,137.3,255.07,254.96,23.776884]
[1732295753266,137.3,255.07,254.96,27.64821406]
[1732295753775,19.16927594,255.04,254.96,27.64821406]
[1732295753963,19.16927594,255.04,254.96,23.776884]
[1732295754168,19.16927594,255.06,254.96,23.776884]
[1732295755199,137.3,255.07,254.96,23.776884]
[1732295755767,137.3,255.07,254.96,27.64821406]
[1732295756167,137.3,255.09,254.96,27.64821406]
[1732295756372,137.3,255.09,254.96,23.776884]
[1732295756773,19.16927594,255.08,254.96,27.64821406]
[1732295757169,19.16927594,255.08,254.96,23.776884]
[1732295757487,137.3,255.09,254.96,23.776884]
[1732295759070,137.3,255.08,254.96,23.776884]
[1732295759380,19.16927594,255.07,254.96,23.776884]
[1732295759688,19.16927594,255.07,254.95,6.5558]
[1732295760858,11.9640548,255.07,254.95,6.5558]
[1732295761053,11.9640548,255.07,254.96,23.776884]
[1732295761282,11.9640548,255.03,254.95,6.5558]
[1732295761455,11.9640548,255.03,254.9,3.86299656]
[1732295761456,137.3,255.02,254.9,3.86299656]
[1732295761661,137.3,255.02,254.89,10.23389656]
[1732295761874,137.3,255.01,254.9,3.86299656]
[1732295762270,137.3,255.01,254.89,15.0025108]
[1732295762706,137.3,255.01,254.9,3.86299656]
[1732295762982,137.3,255.01,254.93,23.776884]
[1732295763366,137.3,255.01,254.92,27.63988056]
[1732295763567,137.3,255.01,254.93,4.76861424]
[1732295763790,137.3,255.01,254.94,23.776884]
[1732295764267,137.3,255.01,254.92,23.776884]
[1732295764471,137.3,255.01,254.9,23.776884]
[1732295764676,137.3,255.01,254.9,3.86299656]
[1732295765182,18.158715,255.12,254.9,3.86299656]
[1732295765183,137.3,255.0,254.9,3.86299656]
[1732295765387,137.3,255.0,254.91,4.76861424]
[1732295766075,137.3,255.0,254.92,27.63988056]
[1732295766261,137.3,255.0,254.94,23.776884]
[1732295766459,137.3,255.0,254.94,28.54549824]
[1732295766880,137.3,255.0,254.94,32.40289362]
[1732295767180,137.3,255.09,254.94,32.40289362]
[1732295767364,137.3,255.08,254.94,32.40289362]
[1732295767769,149.2640548,255.08,254.94,32.40289362]
[1732295767982,149.2640548,255.08,254.94,28.54549824]
[1732295768570,149.2640548,255.08,254.94,23.776884]
[1732295769282,137.3,255.08,254.94,23.776884]
[1732295770221,11.9640548,255.06,254.94,23.776884]
[1732295770490,137.3,255.08,255.03,127.02901351]
[1732295770491,149.2640548,255.08,255.03,127.02901351]
[1732295770668,137.3,255.07,255.03,127.02901351]
[1732295774293,137.3,255.06,255.03,127.02901351]
[1732295777092,137.3,255.05,255.03,127.02901351]
[1732295780074,137.3,255.04,255.03,127.02901351]
[1732295780795,149.2640548,255.04,255.03,127.02901351]
[1732295780983,10.27098649,255.03,254.89,6.3709]
[1732295781175,22.23504129,255.02,254.89,6.3709]
[1732295782478,22.23504129,255.02,254.9,23.776884]